fUST/lending_fUST_20241129
["ID","MTS","AMOUNT","RATE_DAILY","PERIOD"]
[343684392,1732849839335,-500.0,0.00022458,2]
[343684394,1732849839350,-500.0,0.00022458,2]
[343684396,1732849839361,-500.0,0.00022458,2]
[343684398,1732849839372,-500.0,0.00022458,2]
[343684401,1732849839385,-500.0,0.00022458,2]
[343684404,1732849839401,-500.0,0.00022458,2]
[343684406,1732849839418,-500.0,0.00022458,2]
[343684409,1732849839431,-500.0,0.00022458,2]
[343684411,1732849839444,-500.0,0.00022458,2]
[343684413,1732849839458,-500.0,0.00022458,2]
[343684416,1732849839472,-500.0,0.00022458,2]
[343684418,1732849839485,-500.0,0.00022458,2]
[343684420,1732849839496,-500.0,0.00022458,2]
[343684423,1732849839510,-500.0,0.00022458,2]
[343684425,1732849839523,-500.0,0.00022458,2]
[343684427,1732849839536,-500.0,0.00022458,2]
[343684430,1732849839549,-500.0,0.00022458,2]
[343684432,1732849839562,-465.56262642,0.00022458,2]
[343684434,1732849839574,-500.0,0.00022458,2]
[343684437,1732849839588,-500.0,0.00022458,2]
[343684439,1732849839602,-500.0,0.00022458,2]
[343684442,1732849839615,-500.0,0.00022458,2]
[343684444,1732849839627,-500.0,0.00022458,2]
[343684446,1732849839641,-500.0,0.00022458,2]
[343684449,1732849839655,-500.0,0.00022458,2]
[343684451,1732849839668,-500.0,0.00022458,2]
[343684453,1732849839680,-500.0,0.00022458,2]
[343684456,1732849839693,-500.0,0.00022458,2]
[343684458,1732849839706,-500.0,0.00022458,2]
[343684460,1732849839719,-500.0,0.00022458,2]
[343684463,1732849839732,-500.0,0.00022458,2]
[343684465,1732849839745,-500.0,0.00022458,2]
[343684468,1732849839759,-500.0,0.00022458,2]
[343684470,1732849839773,-500.0,0.00022458,2]
[343684472,1732849839786,-500.0,0.00022458,2]
[343684475,1732849839799,-500.0,0.00022458,2]
[343684477,1732849839812,-500.0,0.00022458,2]
[343684479,1732849839825,-7936.16973464,0.00028567,2]
[343684569,1732849840729,-663.20587721,0.00028567,2]
[343684571,1732849840742,-65.16872598,0.00028567,2]
[343684573,1732849840752,-1840.87473236,0.00028606,2]
[343685019,1732849845393,-1255.93806055,0.00028606,2]
[343685169,1732849846792,161.0,0.00022,2]
[343685765,1732850322115,392.966897,0.00013973,2]
[343685766,1732850322319,392.966897,0.00020447,2]
[343685767,1732850322770,1169.27083333,0.00022,2]
[343685771,1732850649391,1169.27083333,0.00022,2]
[343685774,1732850746768,162.0,0.00022,2]
[343685778,1732850852123,-312.99486596,0.0002211,2]
[343685779,1732850852147,-1169.27083333,0.000224,2]
[343685780,1732850852169,-522.010583,0.0002369,2]
[343685781,1732850852193,-300.0,0.00024365,2]
[343685782,1732850852215,-300.0,0.00024365,2]
[343685783,1732850852236,-16818.2270496,0.00024366,2]
[343685784,1732850852259,-483.98287334,0.00024696,2]
[343685785,1732850852279,-6192.45206321,0.00024696,2]
[343685787,1732850892473,2457.88665072,0.0002,2]
[343685788,1732850892941,6501.85255812,0.00021,2]
[343685789,1732850900006,401.8600121,0.000123,2]
[343685790,1732850901476,2216.12948018,0.0002,2]
[343685791,1732850915982,274.19893087,0.0001,2]
[343685792,1732850921737,35518.15999632,0.00020377,2]
[343685793,1732850922205,3500.0,0.00011,2]
[343685794,1732850922614,2332.98356606,0.00020551,15]
[343685795,1732850922931,21276.25599542,0.0001,2]
[343685796,1732850923391,101430.23475428,0.0001999,2]
[343685797,1732850923767,386.07895298,0.000212,30]
[343685798,1732850924436,25674.30692874,0.00022,2]
[343685800,1732850925252,400.87478106,0.00015,2]
[343685801,1732850925699,1579.73524224,0.00021,2]
[343685802,1732850927146,200.41895573,0.000208,2]
[343685804,1732850927296,150956.22690344,0.000109,2]
[343685805,1732850927780,60866.72652381,0.0001,30]
[343685809,1732850952389,400.0,0.00013973,2]
[343685810,1732850952798,400.0,0.00020447,2]
[343685811,1732850962147,-300.0,0.00022009,2]
[343685812,1732850962170,-300.0,0.00022009,2]
[343685813,1732850962195,-10869.1387244,0.0002201,16]
[343685814,1732850967175,-3391.27383623,0.0002201,16]
[343685815,1732850967201,-1169.27083333,0.00023,2]
[343685816,1732850967225,-420.0,0.00023916,2]
[343685817,1732850967247,-420.0,0.0002421,2]
[343685818,1732850967271,-24900.0,0.00024283,2]
[343685819,1732850967292,-17621.06107349,0.00024696,2]
[343685820,1732850967314,-302.66710251,0.00025,2]
[343685821,1732850967335,-10844.83077811,0.00025,2]
[343685822,1732850967356,-2866.66562592,0.00025,2]
[343685823,1732850967377,-302.66710251,0.0002525,2]
[343685824,1732850967397,-174.118316,0.00025301,2]
[343685825,1732850967419,-302.66710251,0.000255,2]
[343685826,1732850967441,-302.66710251,0.0002575,2]
[343685831,1732851001429,1169.27083333,0.00023,2]
[343685889,1732851032936,-154.22365432,0.00026,2]
[343685890,1732851032946,-400.0,0.00026921,2]
[343685891,1732851032955,-528.0,0.00027,2]
[343685892,1732851032965,-289.48072391,0.00027671,2]
[343685920,1732851039094,-238.51927609,0.00027671,2]
[343685921,1732851039104,-300.0,0.00027766,2]
[343685922,1732851039113,-300.0,0.00027766,2]
[343685923,1732851039123,-500.0,0.00027767,120]
[343685924,1732851039132,-500.0,0.00027767,120]
[343685925,1732851039142,-500.0,0.00027767,120]
[343685926,1732851039150,-500.0,0.00027767,120]
[343685927,1732851039159,-61.36275374,0.00027767,120]
[343685943,1732851043670,-438.63724626,0.00027767,120]
[343685944,1732851043680,-500.0,0.00027767,120]
[343685945,1732851043689,-500.0,0.00027767,120]
[343685946,1732851043698,-500.0,0.00027767,120]
[343685947,1732851043708,-307.24,0.00027767,120]
[343685948,1732851043717,-500.0,0.00027767,120]
[343685949,1732851043727,-531.0,0.00027866,2]
[343685950,1732851043736,-316.59460978,0.00027866,2]
[343685956,1732851077182,1169.27083333,0.00023,2]
[343685958,1732851397205,1131.0,0.00026,60]
[343685959,1732851610156,400.0,0.00013973,2]
[343685960,1732851610387,400.0,0.00020447,2]
[343685961,1732851740389,258.0,0.00026,60]
[343685965,1732851994143,-1169.27083333,0.00022278,2]
[343685966,1732851994165,-250.0,0.00024752,2]
[343685967,1732851994186,-7767.9929348,0.00025128,2]
[343685968,1732851994208,-300.0,0.0002607,2]
[343685969,1732851994230,-300.0,0.0002607,2]
[343685970,1732851994251,-745.61873387,0.0002607,2]
[343685971,1732852025102,-2012.64670903,0.00026071,2]
[343685972,1732852025126,-448.18145679,0.00026114,2]
[343685973,1732852025148,-300.0,0.00026114,2]
[343685974,1732852025171,-580.01461063,0.00026114,2]
[343685975,1732852048154,-1169.27083333,0.00023,2]
[343685976,1732852048177,-3074.33469282,0.00026114,2]
[343685977,1732852171117,-261.005292,0.00025876,2]
[343685978,1732852211258,167.08776,0.00013973,2]
[343685979,1732852211475,4.89497151,0.00022174,2]
[343685980,1732852211500,162.19278849,0.00022174,2]
[343686019,1732852233077,-172.213996,0.00026171,2]
[343686020,1732852233088,-234.09717934,0.00026374,2]
[343686029,1732852239333,-1169.27083333,0.00026231,2]
[343686030,1732852239344,-65.90282066,0.00026374,2]
[343686031,1732852239355,-300.0,0.00026374,2]
[343686032,1732852239366,-3374.05771798,0.00026375,2]
[343686034,1732852239386,-3987.03998505,0.00026375,2]
[343686037,1732852241409,-371.20475294,0.00026375,2]
[343686073,1732852244196,-1170.320278,0.00026375,2]
[343686074,1732852244208,-2987.99346724,0.00026375,2]
[343686086,1732853058284,400.0,0.00013973,2]
[343686087,1732853058527,400.0,0.00020447,2]
[343686088,1732853153133,-171.21153646,0.00022667,2]
[343686089,1732853244680,1169.27083333,0.00022,2]
[343686090,1732853248213,-150.0,0.000246,2]
[343686091,1732853248237,-300.0,0.00025221,2]
[343686092,1732853248260,-5000.0,0.00025223,2]
[343686093,1732853248281,-1897.48824158,0.00025223,2]
[343686094,1732853346249,-1169.27083333,0.000236,2]
[343686095,1732853346272,-1237.07604978,0.00024441,2]
[343686096,1732853349127,-4897.26286752,0.00024441,2]
[343686097,1732853349151,-1761.06587041,0.00025159,2]
[343686098,1732853349174,-300.0,0.00025222,2]
[343686099,1732853349201,-1315.0,0.00025222,2]
[343686100,1732853349223,-2795.865823,0.00025223,2]
[343686101,1732853349247,-24900.0,0.00025224,2]
[343686102,1732853349274,-1220.45060537,0.00025259,2]
[343686103,1732853349294,-10208.10062474,0.00025284,2]
[343686104,1732853349317,-261.0052929,0.00025368,2]
[343686105,1732853349338,-4619.15409717,0.00025485,2]
[343686108,1732853357116,-5588.94652757,0.00025485,2]
[343686109,1732853360098,-1761.06587037,0.00025887,2]
[343686110,1732853378784,140.99905908,0.00025223,2]
[343686111,1732853378807,4859.00094092,0.00025223,2]
[343686112,1732853380381,172.213996,0.00025595,2]
[343686132,1732853434969,-40717.3212353,0.00026,2]
[343686133,1732853435036,-5603.15286486,0.00026,2]
[343686138,1732853437915,-4125.000045,0.00026,2]
[343686139,1732853437928,-11136.55101969,0.00026,2]
[343686140,1732853437996,-5907.98163932,0.00026,2]
[343686203,1732853445905,-268.7601,0.00026,2]
[343686204,1732853446367,396.0,0.00022,2]
[343686205,1732853446696,396.0,0.00022192,2]
[343686206,1732853447079,396.0,0.00023014,2]
[343686207,1732853448149,156.0,0.00022,2]
[343686208,1732853448484,396.0,0.00025775,2]
[343686209,1732853448511,157.0,0.00023014,2]
[343686210,1732853448827,400.0,0.00024164,2]
[343686211,1732853456945,1169.27083333,0.000255,2]
[343686214,1732853761665,400.0,0.00013973,2]
[343686215,1732853762064,400.0,0.00020447,2]
[343686216,1732854216261,1169.27083333,0.00022,2]
[343686219,1732854353142,-202.89376085,0.00024709,2]
[343686220,1732854358098,-360.55125592,0.000226,2]
[343686221,1732854398198,400.0,0.00013973,2]
[343686222,1732854398417,400.0,0.00020447,2]
[343686223,1732854425097,-452.45849644,0.000224,2]
[343686224,1732854446337,-716.81233689,0.000224,2]
[343686225,1732854446361,-300.0,0.00024709,2]
[343686226,1732854446383,-300.0,0.00024709,2]
[343686227,1732854446405,-925.0,0.00024709,2]
[343686228,1732854446426,-24900.0,0.0002471,2]
[343686229,1732854446447,-10208.10062475,0.00025307,2]
[343686230,1732854446469,-10208.10062476,0.00025497,2]
[343686231,1732854446491,-624.09837678,0.00025624,2]
[343686232,1732854446516,-1631.34357944,0.00025625,2]
[343686233,1732854446540,-152.0,0.00025662,2]
[343686234,1732854446561,-327.07838038,0.00025971,2]
[343686235,1732854446587,-116457.46473304,0.00026,2]
[343686236,1732854553157,-300.0,0.00022009,2]
[343686237,1732854553178,-300.0,0.00022009,2]
[343686238,1732854553198,-14260.41256063,0.0002201,16]
[343686239,1732854553217,-2000.0,0.000225,2]
[343686240,1732854553237,-420.0,0.00023916,2]
[343686241,1732854553257,-420.0,0.0002421,2]
[343686242,1732854553277,-1579.75008049,0.00025469,2]
[343686243,1732854554104,-225.57536521,0.00025469,2]
[343686244,1732854595169,173.82552031,0.00024709,2]
[343686245,1732854595192,4826.17447969,0.00024709,2]
[343686284,1732854632165,-516.1327671,0.00025333,2]
[343686285,1732854632333,-653.13806623,0.00025333,2]
[343686286,1732854632342,-5000.0,0.00025496,2]
[343686287,1732854632354,-12485.59203939,0.00026,2]
[343686288,1732854632364,-1658.82266134,0.00026,30]
[343686289,1732854632375,-300.0,0.0002607,2]
[343686290,1732854632385,-300.0,0.0002607,2]
[343686291,1732854632396,-5000.0,0.00026071,2]
[343686292,1732854632406,-175.558,0.00026072,12]
[343686293,1732854632417,-1656.95641686,0.00026216,2]
[343686294,1732854632427,-5000.0,0.00026315,2]
[343686295,1732854632437,-151.0,0.00026316,7]
[343686296,1732854632447,-151.0,0.00026316,7]
[343686297,1732854632457,-151.0,0.00026316,7]
[343686298,1732854632467,-151.0,0.00026317,7]
[343686299,1732854632477,-151.0,0.00026317,7]
[343686300,1732854632487,-151.0,0.00026317,7]
[343686301,1732854632496,-151.0,0.00026534,7]
[343686302,1732854632506,-299.284189,0.00026534,7]
[343686303,1732854632517,-155.694804,0.00026535,7]
[343686304,1732854632526,-155.694804,0.00026535,7]
[343686305,1732854632536,-354.540266,0.00026536,7]
[343686306,1732854632666,-354.540266,0.00026536,7]
[343686307,1732854632684,-151.0,0.00026536,7]
[343686308,1732854632695,-249.614476,0.00026536,7]
[343686309,1732854632705,-249.614476,0.00026536,7]
[343686310,1732854632715,-595.0,0.00026537,15]
[343686311,1732854632725,-155.694804,0.00026537,7]
[343686312,1732854632735,-155.694804,0.00026537,7]
[343686313,1732854632745,-151.0,0.00026583,7]
[343686314,1732854632755,-210.775728,0.00026622,7]
[343686315,1732854632764,-210.775728,0.00026622,7]
[343686316,1732854632774,-151.0,0.00026622,7]
[343686317,1732854632785,-1656.9564168,0.00026792,2]
[343686318,1732854632794,-400.0,0.00026921,2]
[343686319,1732854632804,-218.05225358,0.00027121,2]
[343686320,1732854632813,-151.0,0.0002718,7]
[343686321,1732854632823,-5000.0,0.0002721,2]
[343686322,1732854632833,-151.0,0.00027211,7]
[343686323,1732854632843,-200.321138,0.00027211,7]
[343686324,1732854632853,-151.0,0.00027211,7]
[343686325,1732854632865,-531.0,0.00027221,2]
[343686326,1732854632876,-1102.0,0.00027221,2]
[343686327,1732854632886,-2378.0,0.00027221,2]
[343686328,1732854632895,-151.0,0.00027221,7]
[343686329,1732854632905,-210.775728,0.00027318,7]
[343686330,1732854632914,-210.775728,0.00027318,7]
[343686331,1732854632923,-1656.9564168,0.00027369,2]
[343686332,1732854632934,-218.05225358,0.00027393,2]
[343686333,1732854632943,-155.694804,0.00027594,7]
[343686334,1732854632953,-155.694804,0.00027594,7]
[343686335,1732854632963,-1087.56238629,0.00027612,2]
[343686336,1732854632973,-354.540266,0.00027614,7]
[343686337,1732854632983,-354.540266,0.00027614,7]
[343686338,1732854632993,-151.0,0.00027614,7]
[343686339,1732854633003,-249.614476,0.00027614,7]
[343686340,1732854633012,-249.614476,0.00027614,7]
[343686341,1732854633023,-243.424539,0.00027615,7]
[343686342,1732854633033,-243.424539,0.00027615,7]
[343686343,1732854633043,-243.424539,0.00027615,7]
[343686344,1732854633052,-243.424539,0.00027615,7]
[343686345,1732854633062,-350.513315,0.00027615,7]
[343686346,1732854633072,-350.513315,0.00027615,7]
[343686347,1732854633081,-350.513315,0.00027615,7]
[343686348,1732854633092,-350.513315,0.00027615,7]
[343686349,1732854633102,-151.0,0.00027615,7]
[343686350,1732854633111,-151.0,0.00027615,7]
[343686351,1732854633121,-210.775728,0.00027629,7]
[343686352,1732854633131,-210.775728,0.00027629,7]
[343686353,1732854633142,-155.694804,0.00027629,7]
[343686354,1732854633153,-155.694804,0.00027629,7]
[343686355,1732854633162,-151.0,0.00027629,7]
[343686356,1732854633172,-151.0,0.00027629,7]
[343686357,1732854633184,-500.0,0.00027641,2]
[343686358,1732854633194,-761.03979857,0.00027665,2]
[343686359,1732854633204,-218.05225358,0.00027665,2]
[343686360,1732854633214,-2483.72,0.00027754,10]
[343686361,1732854633224,-5000.0,0.00027763,2]
[343686362,1732854633234,-5000.0,0.00027763,2]
[343686363,1732854633244,-642.14606774,0.00027764,2]
[343686364,1732854633253,-208.8440796,0.00027764,2]
[343686365,1732854633264,-208.68386644,0.00027764,2]
[343686366,1732854633275,-200.9733908,0.00027764,2]
[343686367,1732854633285,-151.0,0.00027764,7]
[343686368,1732854633296,-151.0,0.00027764,7]
[343686369,1732854633306,-130.32586809,0.00027764,7]
[343686392,1732854638352,-150.0,0.00027221,2]
[343686393,1732854638362,-299.75430332,0.00027611,2]
[343686394,1732854638456,-500.0,0.00027611,2]
[343686395,1732854638469,-187.36768812,0.00027611,2]
[343686396,1732854638479,-500.0,0.00027611,2]
[343686397,1732854638489,-500.0,0.00027611,2]
[343686398,1732854638499,-500.0,0.00027611,2]
[343686399,1732854638511,-500.0,0.00027611,2]
[343686400,1732854638521,-500.0,0.00027611,2]
[343686401,1732854638532,-183.77392026,0.00027611,2]
[343686402,1732854638541,-500.0,0.00027611,2]
[343686403,1732854638551,-500.0,0.00027611,2]
[343686404,1732854638560,-500.0,0.00027611,2]
[343686405,1732854638574,-500.0,0.00027611,2]
[343686406,1732854638584,-500.0,0.00027611,2]
[343686407,1732854638594,-500.0,0.00027611,2]
[343686408,1732854638604,-500.0,0.00027611,2]
[343686409,1732854638615,-500.0,0.00027611,2]
[343686410,1732854638624,-500.0,0.00027611,2]
[343686411,1732854638634,-204.86501222,0.00027611,2]
[343686412,1732854638645,-500.0,0.00027611,2]
[343686413,1732854638655,-500.0,0.00027611,2]
[343686414,1732854638664,-578.18236839,0.00027611,2]
[343686415,1732854638674,-500.0,0.00027611,2]
[343686416,1732854638684,-500.0,0.00027611,2]
[343686417,1732854638693,-500.0,0.00027611,2]
[343686418,1732854638702,-447.03104732,0.00027611,2]
[343686419,1732854638712,-500.0,0.00027611,2]
[343686420,1732854638722,-500.0,0.00027611,2]
[343686421,1732854638732,-500.0,0.00027611,2]
[343686422,1732854638742,-500.0,0.00027611,2]
[343686423,1732854638752,-500.0,0.00027611,2]
[343686424,1732854638761,-500.0,0.00027611,2]
[343686425,1732854638770,-500.0,0.00027611,2]
[343686426,1732854638780,-500.0,0.00027611,2]
[343686427,1732854638789,-500.0,0.00027611,2]
[343686428,1732854638800,-500.0,0.00027611,2]
[343686429,1732854638810,-500.0,0.00027611,2]
[343686430,1732854638819,-500.0,0.00027611,2]
[343686431,1732854638830,-482.4405746,0.00027611,2]
[343686439,1732854640004,-17.5594254,0.00027611,2]
[343686440,1732854640014,-500.0,0.00027611,2]
[343686441,1732854640025,-500.0,0.00027611,2]
[343686442,1732854640036,-500.0,0.00027611,2]
[343686443,1732854640046,-3413.52,0.00027755,10]
[343686444,1732854640056,-20.67413191,0.00027764,7]
[343686445,1732854640065,-151.0,0.00027764,7]
[343686446,1732854640075,-151.0,0.00027764,7]
[343686447,1732854640086,-151.0,0.00027764,7]
[343686448,1732854640095,-118.47136354,0.00027764,7]
[343686454,1732854643010,-32.52863646,0.00027764,7]
[343686455,1732854643020,-5000.0,0.00027764,2]
[343686456,1732854643030,-1054.56612576,0.00027764,2]
[343686469,1732854646023,-49.10912006,0.00027764,2]
[343686470,1732854646179,-50.27316627,0.00027764,2]
[343686471,1732854686512,1504.2628656,0.00025999,60]
[343686476,1732854751297,500.0,0.00022,2]
[343686488,1732855051025,340.0,0.00013973,2]
[343686489,1732855051235,340.0,0.00020447,2]
[343686490,1732855074135,13000.0,0.0002,2]
[343686492,1732855187291,1169.27083333,0.00022,2]
[343686500,1732855512758,1169.27083333,0.00022,2]
[343686501,1732855558258,-192.49809387,0.00023042,2]
[343686503,1732855642204,-300.0,0.00023041,2]
[343686504,1732855642316,-300.0,0.00023041,2]
[343686505,1732855642342,-2061.0,0.00023041,2]
[343686506,1732855642366,-24707.50190613,0.00023042,2]
[343686507,1732855642389,-196.1362093,0.00023334,2]
[343686508,1732855642410,-169.327645,0.00023447,2]
[343686509,1732855642433,-232.4888129,0.00023456,2]
[343686510,1732855642456,-1169.27083333,0.000236,2]
[343686511,1732855642479,-5000.0,0.00024238,2]
[343686512,1732855642502,-608.83183888,0.000249,2]
[343686513,1732855642524,-408.0,0.00024932,2]
[343686514,1732855642545,-500.4034591,0.00024973,2]
[343686515,1732855642566,-303.23377872,0.00024973,2]
[343686516,1732855642588,-501.24477734,0.00024973,2]
[343686517,1732855642611,-5000.0,0.00024989,2]
[343686518,1732855642634,-2844.6,0.0002499,10]
[343686519,1732855642654,-2370.5,0.0002499,10]
[343686520,1732855642675,-1975.42,0.0002499,10]
[343686521,1732855642695,-5000.0,0.00024998,2]
[343686522,1732855642715,-1319.40904068,0.00024998,2]
[343686523,1732855642735,-449.50224742,0.00024999,2]
[343686524,1732855642755,-500.0,0.00024999,2]
[343686525,1732855642774,-500.0,0.00024999,2]
[343686526,1732855642795,-500.0,0.00024999,2]
[343686527,1732855642817,-500.0,0.00024999,2]
[343686528,1732855642837,-500.0,0.00024999,2]
[343686529,1732855642858,-500.0,0.00024999,2]
[343686530,1732855642881,-500.0,0.00024999,2]
[343686531,1732855642908,-522.76277914,0.00024999,2]
[343686532,1732855642931,-500.0,0.00024999,2]
[343686533,1732855642954,-175.35359649,0.00024999,2]
[343686534,1732855642978,-500.0,0.00024999,2]
[343686535,1732855642999,-500.0,0.00024999,2]
[343686536,1732855643021,-500.0,0.00024999,2]
[343686537,1732855643043,-500.0,0.00024999,2]
[343686538,1732855643064,-500.0,0.00024999,2]
[343686539,1732855643085,-500.0,0.00024999,2]
[343686540,1732855643106,-500.0,0.00024999,2]
[343686541,1732855643128,-494.70310474,0.00024999,2]
[343686542,1732855643149,-500.0,0.00024999,2]
[343686543,1732855643170,-500.0,0.00024999,2]
[343686544,1732855643192,-2297.19484995,0.00024999,2]
[343686545,1732855643214,-171464.33511583,0.00025,4]
[343686546,1732855646084,-389.06132272,0.00025,4]
[343686547,1732855686229,319.207813,0.00013973,2]
[343686548,1732855686657,319.207813,0.00020447,2]
[343686558,1732855756108,-1169.27083333,0.0002375,2]
[343686559,1732855756130,-1035.5977605,0.000248,2]
[343686560,1732855756152,-300.0,0.00024999,2]
[343686561,1732855756173,-300.0,0.00024999,2]
[343686562,1732855756194,-33906.56755255,0.00025,4]
[343686563,1732855756214,-408.0,0.00025,2]
[343686564,1732855756238,-447.22215926,0.00025578,2]
[343686565,1732855759097,-588.37560124,0.00025578,2]
[343686569,1732855773083,-608.83183884,0.00025842,2]
[343686570,1732855798617,162.79990946,0.00025,2]
[343686571,1732855798639,155.40108339,0.00025,2]
[343686656,1732855838278,-851.06984048,0.00025,2]
[343686658,1732855838288,-408.0,0.0002589,2]
[343686660,1732855838297,-68.54617938,0.00026316,7]
[343686664,1732855838808,-82.45382062,0.00026316,7]
[343686665,1732855838818,-1035.5977605,0.00026356,2]
[343686666,1732855838828,-608.83183884,0.00026784,2]
[343686667,1732855838838,-319.207813,0.00026921,2]
[343686668,1732855838847,-300.0,0.00027007,2]
[343686669,1732855838857,-300.0,0.00027007,2]
[343686670,1732855838866,-150.0,0.00027008,2]
[343686671,1732855838875,-424.232,0.00027008,2]
[343686672,1732855838885,-768.73,0.00027008,2]
[343686673,1732855838895,-2378.0,0.00027008,2]
[343686674,1732855838904,-1035.5977605,0.00027134,2]
[343686675,1732855838913,-411.0,0.00027185,2]
[343686676,1732855838923,-5392.06775963,0.00027186,2]
[343686677,1732855838939,-5392.06775964,0.00027488,2]
[343686678,1732855838949,-500.0,0.00027612,2]
[343686679,1732855838958,-608.83183884,0.00027725,2]
[343686680,1732855838969,-218.64428943,0.00027763,2]
[343686681,1732855838979,-2667.94587286,0.00027763,2]
[343686682,1732855838988,-151.0,0.00027763,7]
[343686683,1732855838998,-251.697134,0.00027763,7]
[343686684,1732855839008,-251.697134,0.00027763,7]
[343686685,1732855839019,-157.474871,0.00027763,7]
[343686686,1732855839029,-194.739631,0.00027763,7]
[343686687,1732855839038,-194.739631,0.00027763,7]
[343686688,1732855839050,-151.0,0.00027764,7]
[343686689,1732855839060,-151.0,0.00027764,7]
[343686690,1732855839070,-151.0,0.00027764,7]
[343686691,1732855839080,-151.0,0.00027764,7]
[343686692,1732855839089,-151.635339,0.00027764,7]
[343686693,1732855839099,-151.0,0.00027764,7]
[343686694,1732855839109,-151.0,0.00027764,7]
[343686695,1732855839118,-151.0,0.00027765,7]
[343686696,1732855839129,-151.0,0.00027765,7]
[343686697,1732855839138,-249.614476,0.00027765,7]
[343686698,1732855839148,-249.614476,0.00027765,7]
[343686699,1732855839158,-255.177549,0.00027765,7]
[343686700,1732855839167,-151.0,0.00027765,7]
[343686701,1732855839177,-151.0,0.00027765,7]
[343686702,1732855839186,-151.0,0.00027765,7]
[343686703,1732855839196,-151.0,0.00027765,7]
[343686704,1732855839205,-151.0,0.00027765,7]
[343686705,1732855839215,-122.14805611,0.00027765,7]
[343686706,1732855839345,-158.26259589,0.00027765,7]
[343686707,1732855839356,-280.410652,0.00027765,7]
[343686708,1732855839366,-151.0,0.00027765,7]
[343686709,1732855839376,-151.0,0.00027765,7]
[343686710,1732855839386,-157.59435,0.00027765,7]
[343686711,1732855839397,-63.32397211,0.00027765,7]
[343686727,1732855843224,-92.53584989,0.00027765,7]
[343686728,1732855843234,-151.953311,0.00027765,7]
[343686729,1732855843244,-151.0,0.00027865,7]
[343686730,1732855843253,-249.614476,0.00027865,7]
[343686731,1732855843262,-249.614476,0.00027865,7]
[343686732,1732855843272,-1035.5977605,0.00027911,2]
[343686733,1732855843281,-151.0,0.00027941,7]
[343686734,1732855843290,-1862.15887309,0.00027969,14]
[343686735,1732855843306,-323.9,0.00028268,15]
[343686736,1732855843315,-151.0,0.000284,18]
[343686737,1732855843325,-249.614476,0.00028465,7]
[343686738,1732855843334,-249.614476,0.00028465,7]
[343686739,1732855843344,-151.0,0.00028465,7]
[343686740,1732855843353,-151.0,0.00028465,7]
[343686741,1732855843363,-153.836423,0.00028465,7]
[343686742,1732855843372,-151.0,0.00028465,7]
[343686743,1732855843381,-249.614476,0.00028466,7]
[343686744,1732855843391,-249.614476,0.00028466,7]
[343686745,1732855843401,-151.0,0.00028466,7]
[343686746,1732855843410,-162.869217,0.00028466,7]
[343686747,1732855843430,-280.410652,0.00028466,7]
[343686748,1732855843443,-280.410652,0.00028466,7]
[343686749,1732855843454,-151.0,0.00028466,7]
[343686750,1732855843464,-151.0,0.00028466,7]
[343686751,1732855843474,-151.0,0.00028467,7]
[343686752,1732855843484,-151.0,0.00028467,7]
[343686753,1732855843494,-151.0,0.000286,14]
[343686754,1732855843504,-94.8388748,0.000286,27]
[343686766,1732856290047,150.0,0.00022,30]
[343686768,1732856333599,150.0,0.00022,2]
[343686769,1732856398609,153.7,0.00022,2]